fUSD/lending_fUSD_20260208
["ID","MTS","AMOUNT","RATE_DAILY","PERIOD"]
[404804494,1770581439498,-150.0,0.0004094,7]
[404804495,1770581439507,-150.0,0.0004094,7]
[404804496,1770581439517,-150.0,0.0004094,7]
[404804497,1770581439526,-952.06549337,0.00040946,2]
[404804498,1770581439535,-1000.0,0.00040966,2]
[404804499,1770581439544,-150.0,0.00040992,7]
[404804500,1770581439555,-153.0,0.00041,120]
[404804501,1770581439565,-363.77058182,0.00041095,120]
[404804502,1770581439575,-150.0,0.00041098,30]
[404804503,1770581439584,-150.0,0.00041098,30]
[404804504,1770581439594,-150.0,0.00041135,30]
[404804505,1770581439603,-150.0,0.00041135,30]
[404804506,1770581439613,-1706.00579964,0.00041139,28]
[404804507,1770581439623,-150.0,0.00041161,30]
[404804508,1770581439633,-150.0,0.00041203,30]
[404804509,1770581439643,-150.0,0.00041216,30]
[404804510,1770581439652,-150.0,0.00041308,30]
[404804511,1770581439662,-150.0,0.00041308,30]
[404804512,1770581439671,-150.0,0.00041382,30]
[404804513,1770581439680,-150.0,0.00041395,30]
[404804514,1770581439690,-150.0,0.00041395,30]
[404804515,1770581439699,-150.0,0.00041414,30]
[404804517,1770581439709,-150.0,0.00041414,30]
[404804518,1770581439718,-1132.21493571,0.00041454,15]
[404804519,1770581439727,-3072.30084558,0.00041458,15]
[404804520,1770581439736,-150.0,0.00041493,30]
[404804521,1770581439745,-150.0,0.00041519,30]
[404804522,1770581439755,-436.23576484,0.00041567,15]
[404804523,1770581439764,-151.0,0.000416,120]
[404804524,1770581439777,-150.0,0.00041603,30]
[404804525,1770581439787,-150.0,0.00041625,30]
[404804526,1770581439796,-150.0,0.00041656,30]
[404804527,1770581439805,-150.0,0.00041656,30]
[404804528,1770581439815,-11361.0,0.000417,117]
[404804529,1770581439825,-150.0,0.0004173,30]
[404804530,1770581439834,-150.0,0.0004173,30]
[404804531,1770581439843,-150.0,0.00041769,30]
[404804532,1770581439853,-150.0,0.00041825,30]
[404804533,1770581439862,-150.0,0.00041835,30]
[404804534,1770581439872,-952.06549337,0.0004187,2]
[404804535,1770581439881,-150.0,0.00041916,30]
[404804536,1770581439890,-150.0,0.00041916,30]
[404804537,1770581439900,-150.0,0.00041941,30]
[404804538,1770581439909,-153.0,0.00042,120]
[404804539,1770581439919,-213.75126474,0.00042,2]
[404804540,1770581439928,-544.0,0.00042,10]
[404804541,1770581439938,-150.0,0.00042046,30]
[404804542,1770581439947,-150.0,0.00042046,30]
[404804543,1770581439958,-150.0,0.00042046,30]
[404804544,1770581439967,-150.0,0.00042046,30]
[404804545,1770581439976,-150.0,0.00042046,30]
[404804546,1770581439986,-150.0,0.00042046,30]
[404804547,1770581439995,-150.0,0.00042046,30]
[404804548,1770581440005,-767.72,0.00042065,2]
[404804549,1770581440014,-2827.0,0.00042119,16]
[404804550,1770581440023,-150.0,0.00042151,30]
[404804551,1770581440032,-150.0,0.00042176,30]
[404804552,1770581440042,-150.0,0.00042176,30]
[404804553,1770581440052,-200.0,0.00042254,2]
[404804554,1770581440061,-150.0,0.00042257,30]
[404804555,1770581440071,-150.0,0.00042267,30]
[404804556,1770581440081,-150.0,0.00042323,30]
[404804557,1770581440091,-150.0,0.00042362,30]
[404804558,1770581440100,-150.0,0.00042362,30]
[404804559,1770581440110,-151.0,0.000424,120]
[404804560,1770581440119,-150.0,0.00042426,120]
[404804561,1770581440128,-1253.77707055,0.00042433,7]
[404804562,1770581440138,-150.0,0.00042437,30]
[404804563,1770581440147,-150.0,0.00042437,30]
[404804564,1770581440156,-169.75030081,0.00042466,30]
[404804565,1770581440165,-20000.0,0.00042466,120]
[404804566,1770581440175,-150.0,0.00042468,30]
[404804567,1770581440186,-150.0,0.00042489,30]
[404804568,1770581440195,-5820.7,0.000425,2]
[404804569,1770581440205,-265.06963232,0.00042536,2]
[404804570,1770581440214,-200.0,0.00042567,2]
[404804571,1770581440224,-827.0,0.00042569,16]
[404804572,1770581440233,-150.0,0.00042573,30]
[404804573,1770581440243,-1132.21493571,0.00042579,15]
[404804574,1770581440252,-3072.30084558,0.00042583,15]
[404804575,1770581440261,-2827.0,0.0004259,16]
[404804576,1770581440271,-150.0,0.00042599,30]
[404804577,1770581440280,-601.7,0.000426,30]
[404804578,1770581440290,-539.29236495,0.00042615,60]
[404804579,1770581440300,-3255.0,0.00042618,2]
[404804580,1770581440309,-6585.0,0.00042618,2]
[404804581,1770581440318,-1706.00579964,0.00042651,28]
[404804582,1770581440336,-150.0,0.00042678,30]
[404804583,1770581440348,-150.0,0.00042678,30]
[404804584,1770581440357,-150.0,0.00042697,30]
[404804585,1770581440366,-150.0,0.00042697,30]
[404804586,1770581440376,-150.0,0.0004271,30]
[404804587,1770581440386,-800.0,0.0004274,7]
[404804588,1770581440395,-150.0,0.00042784,30]
[404804589,1770581440405,-150.0,0.00042784,30]
[404804590,1770581440415,-952.06549337,0.00042793,2]
[404804591,1770581440424,-3273.88589306,0.000428,30]
[404804592,1770581440433,-49991.0,0.00042842,30]
[404804593,1770581440443,-164.0,0.00042842,16]
[404804594,1770581440453,-150.0,0.00042876,30]
[404804595,1770581440462,-150.0,0.00042889,30]
[404804596,1770581440472,-196.0,0.0004289,16]
[404804597,1770581440481,-840.0,0.00042893,16]
[404804598,1770581440491,-236.14884171,0.000429,30]
[404804599,1770581440500,-15357.3013205,0.000429,120]
[404804600,1770581440509,-164.0,0.0004291,16]
[404804601,1770581440519,-4555.29193256,0.00042917,7]
[404804602,1770581440529,-150.0,0.00042931,30]
[404804603,1770581440538,-169.75030081,0.00042932,30]
[404804604,1770581440548,-164.0,0.00042932,16]
[404804605,1770581440557,-150.0,0.00042957,30]
[404804606,1770581440567,-150.0,0.00042957,30]
[404804607,1770581440576,-150.0,0.00042973,10]
[404804608,1770581440586,-300.0,0.00042973,5]
[404804609,1770581440595,-150.0,0.00042994,30]
[404804610,1770581440605,-150.0,0.00042994,30]
[404804611,1770581440614,-348.93247409,0.00042998,30]
[404804612,1770581440624,-10000.0,0.00043,120]
[404804613,1770581440635,-153.0,0.00043,120]
[404804614,1770581440645,-212.0,0.00043,30]
[404804615,1770581440656,-150.0,0.000431,30]
[404804616,1770581440666,-151.0,0.000431,120]
[404804617,1770581440676,-150.0,0.00043153,30]
[404804618,1770581440686,-150.0,0.00043153,30]
[404804619,1770581440695,-150.0,0.00043153,30]
[404804620,1770581440705,-636.0,0.00043187,120]
[404804621,1770581440715,-150.0,0.00043205,30]
[404804622,1770581440725,-7480.75096343,0.0004321,120]
[404804623,1770581440734,-2699.0,0.0004321,16]
[404804624,1770581440743,-150.0,0.00043218,30]
[404804625,1770581440966,-150.0,0.00043218,30]
[404804626,1770581440976,-49991.0,0.00043283,30]
[404804627,1770581440985,-840.0,0.00043286,16]
[404804628,1770581440994,-2827.0,0.00043286,16]
[404804629,1770581441003,-2000.0,0.000433,2]
[404804630,1770581441012,-1000.0,0.000433,2]
[404804631,1770581441022,-150.0,0.00043311,30]
[404804632,1770581441031,-150.0,0.00043311,30]
[404804633,1770581441040,-150.27171808,0.00043374,2]
[404804634,1770581441050,-150.0,0.00043374,30]
[404804635,1770581441059,-169.75030081,0.00043397,30]
[404804636,1770581441068,-530.22730493,0.000434,30]
[404804637,1770581441077,-152.52520712,0.000434,120]
[404804638,1770581441087,-2000.0,0.000434,7]
[404804639,1770581441095,-150.0,0.00043416,30]
[404804640,1770581441105,-150.0,0.00043429,30]
[404804641,1770581441113,-150.0,0.00043478,30]
[404804642,1770581441122,-150.0,0.00043478,30]
[404804643,1770581441131,-300.090319,0.00043491,117]
[404804644,1770581441140,-251.3634381,0.00043521,10]
[404804645,1770581441149,-300.51862815,0.00043521,5]
[404804646,1770581441159,-150.0,0.00043521,30]
[404804647,1770581441168,-150.0,0.00043595,30]
[404804648,1770581441177,-15063.95000276,0.000436,120]
[404804649,1770581441187,-150.0,0.00043627,30]
[404804650,1770581441202,-150.0,0.00043627,30]
[404804651,1770581441212,-25000.0,0.00043633,15]
[404804652,1770581441221,-25000.0,0.00043641,15]
[404804653,1770581441231,-25000.0,0.0004365,15]
[404804654,1770581441240,-151.0,0.00043656,120]
[404804655,1770581441250,-150.0,0.00043656,30]
[404804656,1770581441259,-1055.36341632,0.00043656,30]
[404804657,1770581441269,-150.0,0.00043656,30]
[404804658,1770581441279,-3240.89898856,0.00043656,30]
[404804659,1770581441288,-150.0,0.00043656,30]
[404804660,1770581441298,-748.98175906,0.00043656,30]
[404804661,1770581441308,-25000.0,0.00043659,15]
[404804662,1770581441318,-200.0,0.00043668,2]
[404804663,1770581441328,-25000.0,0.00043668,15]
[404804664,1770581441337,-25000.0,0.00043677,15]
[404804665,1770581441347,-25000.0,0.00043685,15]
[404804666,1770581441356,-844.17346933,0.0004369,120]
[404804667,1770581441366,-25000.0,0.00043694,15]
[404804668,1770581441375,-256.44961567,0.000437,120]
[404804669,1770581441385,-25000.0,0.00043703,15]
[404804670,1770581441394,-1132.21493571,0.00043703,15]
[404804671,1770581441404,-150.0,0.00043706,30]
[404804672,1770581441414,-3072.30084558,0.00043708,15]
[404804673,1770581441423,-25000.0,0.00043712,15]
[404804674,1770581441433,-952.06549337,0.00043716,2]
[404804675,1770581441443,-25000.0,0.00043721,15]
[404804676,1770581441453,-151.000008,0.00043721,120]
[404804677,1770581441462,-151.0,0.00043721,120]
[404804678,1770581441471,-151.0,0.00043721,120]
[404804679,1770581441481,-151.0,0.00043721,120]
[404804680,1770581441490,-151.0,0.00043721,120]
[404804681,1770581441499,-169.109887,0.00043721,120]
[404804682,1770581441508,-151.0,0.00043721,120]
[404804683,1770581441518,-206.652568,0.00043721,120]
[404804684,1770581441527,-206.652568,0.00043721,120]
[404804685,1770581441536,-206.652568,0.00043721,120]
[404804686,1770581441546,-49991.0,0.00043725,30]
[404804687,1770581441555,-151.0,0.00043725,60]
[404804688,1770581441565,-151.0,0.00043725,120]
[404804689,1770581441574,-151.0,0.00043725,120]
[404804690,1770581441584,-151.0,0.00043725,120]
[404804691,1770581441594,-170.040018,0.00043725,120]
[404804692,1770581441604,-170.040018,0.00043725,120]
[404804693,1770581441613,-170.040018,0.00043725,120]
[404804694,1770581441622,-170.040018,0.00043725,120]
[404804695,1770581441631,-151.0,0.00043725,120]
[404804696,1770581441641,-151.0,0.00043725,120]
[404804697,1770581441650,-151.0,0.00043725,120]
[404804698,1770581441659,-151.0,0.00043725,120]
[404804699,1770581441668,-151.0,0.00043725,120]
[404804700,1770581441677,-151.0,0.00043725,120]
[404804701,1770581441687,-151.0,0.00043725,120]
[404804702,1770581441696,-151.0,0.00043725,120]
[404804703,1770581441706,-151.0,0.00043725,120]
[404804704,1770581441715,-151.0,0.00043725,120]
[404804705,1770581441724,-151.0,0.00043725,120]
[404804706,1770581441734,-190.590149,0.00043725,120]
[404804707,1770581441744,-185.192251,0.00043725,120]
[404804708,1770581441753,-190.590149,0.00043725,120]
[404804709,1770581441763,-190.590149,0.00043725,120]
[404804710,1770581441776,-306.468837,0.00043725,120]
[404804711,1770581441787,-190.590149,0.00043725,120]
[404804712,1770581441797,-151.0,0.00043725,120]
[404804713,1770581441806,-306.468837,0.00043725,120]
[404804714,1770581441815,-151.0,0.00043725,120]
[404804715,1770581441825,-151.0,0.00043725,120]
[404804716,1770581441834,-306.468837,0.00043725,120]
[404804717,1770581441845,-151.0,0.00043725,120]
[404804718,1770581441855,-306.468837,0.00043725,120]
[404804719,1770581441864,-151.0,0.00043725,120]
[404804720,1770581441874,-151.0,0.00043725,120]
[404804721,1770581441883,-358.054637,0.00043725,120]
[404804722,1770581441892,-358.054637,0.00043725,120]
[404804723,1770581441902,-358.054637,0.00043725,120]
[404804724,1770581441911,-358.054637,0.00043725,120]
[404804725,1770581441920,-151.0,0.00043725,120]
[404804726,1770581441930,-151.0,0.00043725,120]
[404804727,1770581441939,-151.0,0.00043725,120]
[404804728,1770581441948,-274.978908,0.00043725,120]
[404804729,1770581441958,-152.5711,0.00043725,120]
[404804730,1770581441967,-152.5711,0.00043725,120]
[404804731,1770581441976,-152.5711,0.00043725,120]
[404804732,1770581441986,-152.5711,0.00043725,120]
[404804733,1770581441995,-151.0,0.00043725,14]
[404804734,1770581442004,-164.3759,0.00043725,120]
[404804735,1770581442014,-151.0,0.00043725,120]
[404804736,1770581442024,-155.424864,0.00043725,120]
[404804737,1770581442033,-151.0,0.00043725,120]
[404804738,1770581442042,-151.0,0.00043725,120]
[404804740,1770581442052,-151.0,0.00043725,120]
[404804742,1770581442061,-210.402383,0.00043725,120]
[404804744,1770581442073,-210.402383,0.00043725,120]
[404804746,1770581442083,-151.0,0.00043725,120]
[404804748,1770581442092,-210.402383,0.00043725,120]
[404804749,1770581442101,-210.402383,0.00043725,120]
[404804750,1770581442110,-151.0,0.00043725,120]
[404804751,1770581442120,-151.0,0.00043725,120]
[404804752,1770581442129,-151.0,0.00043725,120]
[404804753,1770581442142,-151.0,0.00043725,31]
[404804754,1770581442152,-151.0,0.00043725,120]
[404804755,1770581442162,-151.0,0.00043725,120]
[404804756,1770581442172,-151.0,0.00043725,120]
[404804757,1770581442181,-151.0,0.00043725,120]
[404804758,1770581442191,-169.071698,0.00043725,120]
[404804759,1770581442200,-25000.0,0.00043729,15]
[404804760,1770581442210,-150.0,0.00043732,30]
[404804761,1770581442220,-25000.0,0.00043738,15]
[404804762,1770581442229,-150.0,0.00043738,30]
[404804763,1770581442239,-150.0,0.00043738,30]
[404804764,1770581442249,-25000.0,0.00043747,15]
[404804765,1770581442259,-151.0,0.00043747,120]
[404804766,1770581442268,-151.0,0.00043747,120]
[404804767,1770581442278,-3484.0,0.00043747,2]
[404804768,1770581442287,-616.0,0.00043747,2]
[404804769,1770581442297,-1335.0,0.00043747,2]
[404804770,1770581442307,-917.0,0.00043747,2]
[404804771,1770581442316,-269668.20935234,0.0004375,120]
[404804772,1770581442482,-362.922358,0.0004375,120]
[404804773,1770581442501,-1139.22570842,0.00035804,2]
[404804774,1770581442513,-3860.77429158,0.00035804,2]
[404804775,1770581442522,-412.0,0.00039618,2]
[404804776,1770581442531,-9860.41343943,0.0004375,120]
[404804777,1770581442542,-8060.40927173,0.0004375,120]
[404804778,1770581442553,-774.71,0.0004375,120]
[404804779,1770581442666,-412.0,0.00042618,2]
[404804780,1770581442676,-206.652568,0.00043721,120]
[404804781,1770581442686,-4032.89509877,0.0004375,120]
[404804782,1770581442701,-4673.74662307,0.0004375,120]
[404804783,1770581442711,-151.0,0.0004375,120]
[404804784,1770581442720,-151.0,0.0004375,120]
[404804785,1770581442729,-151.0,0.0004375,120]
[404804786,1770581442738,-151.0,0.0004375,120]
[404804787,1770581442747,-151.0,0.0004375,120]
[404804788,1770581442756,-158.1054,0.0004375,120]
[404804789,1770581442765,-151.0,0.0004375,120]
[404804790,1770581442778,-151.0,0.0004375,120]
[404804791,1770581442787,-151.0,0.0004375,120]
[404804792,1770581442796,-151.0,0.0004375,120]
[404804793,1770581442805,-151.0,0.0004375,60]
[404804794,1770581442815,-192.510124,0.0004375,120]
[404804795,1770581442824,-192.510124,0.0004375,120]
[404804796,1770581442834,-192.510124,0.0004375,120]
[404804797,1770581442844,-192.510124,0.0004375,120]
[404804798,1770581442854,-151.0,0.0004375,120]
[404804799,1770581442863,-162.282853,0.0004375,120]
[404804800,1770581442876,-151.0,0.0004375,120]
[404804801,1770581442886,-206.652568,0.0004375,120]
[404804802,1770581442895,-206.652568,0.0004375,120]
[404804803,1770581442904,-206.652568,0.0004375,120]
[404804804,1770581442914,-206.652568,0.0004375,120]
[404804805,1770581442923,-25000.0,0.00043756,15]
[404804806,1770581442933,-162.38812646,0.00043758,120]
[404804807,1770581442942,-25000.0,0.00043765,15]
[404804808,1770581442952,-151.0,0.00043765,120]
[404804809,1770581442962,-151.0,0.00043765,120]
[404804810,1770581442971,-151.0,0.00043765,120]
[404804811,1770581442980,-170.040018,0.00043765,120]
[404804812,1770581442989,-170.040018,0.00043765,120]
[404804813,1770581442999,-170.040018,0.00043765,120]
[404804814,1770581443008,-170.040018,0.00043765,120]
[404804815,1770581443017,-151.0,0.00043765,120]
[404804816,1770581443027,-151.0,0.00043765,120]
[404804817,1770581443036,-151.0,0.00043765,120]
[404804818,1770581443045,-151.0,0.00043765,120]
[404804819,1770581443055,-151.0,0.00043765,120]
[404804820,1770581443064,-151.0,0.00043765,120]
[404804821,1770581443073,-151.0,0.00043765,120]
[404804822,1770581443082,-151.0,0.00043765,120]
[404804823,1770581443091,-151.0,0.00043765,120]
[404804824,1770581443101,-179.897801,0.00043765,120]
[404804825,1770581443111,-190.590149,0.00043765,120]
[404804826,1770581443120,-190.590149,0.00043765,120]
[404804827,1770581443129,-190.590149,0.00043765,120]
[404804828,1770581443139,-306.468837,0.00043765,120]
[404804829,1770581443147,-190.590149,0.00043765,120]
[404804830,1770581443157,-151.0,0.00043765,120]
[404804831,1770581443167,-306.468837,0.00043765,120]
[404804832,1770581443176,-151.0,0.00043765,120]
[404804833,1770581443186,-151.0,0.00043765,120]
[404804834,1770581443195,-306.468837,0.00043765,120]
[404804835,1770581443205,-151.0,0.00043765,120]
[404804836,1770581443214,-306.468837,0.00043765,120]
[404804837,1770581443224,-151.0,0.00043765,120]
[404804838,1770581443233,-151.0,0.00043765,120]
[404804839,1770581443243,-358.054637,0.00043765,120]
[404804840,1770581443252,-358.054637,0.00043765,120]
[404804841,1770581443262,-358.054637,0.00043765,120]
[404804842,1770581443271,-358.054637,0.00043765,120]
[404804843,1770581443280,-151.0,0.00043765,120]
[404804844,1770581443289,-151.0,0.00043765,120]
[404804845,1770581443299,-152.5711,0.00043765,120]
[404804846,1770581443308,-152.5711,0.00043765,120]
[404804847,1770581443318,-152.5711,0.00043765,120]
[404804849,1770581443327,-152.5711,0.00043765,120]
[404804850,1770581443336,-151.0,0.00043765,14]
[404804851,1770581443346,-151.0,0.00043765,120]
[404804852,1770581443356,-151.0,0.00043765,120]
[404804853,1770581443365,-151.0,0.00043765,120]
[404804854,1770581443374,-210.402383,0.00043765,120]
[404804855,1770581443383,-210.402383,0.00043765,120]
[404804856,1770581443393,-210.402383,0.00043765,120]
[404804857,1770581443402,-210.402383,0.00043765,120]
[404804858,1770581443411,-151.0,0.00043765,120]
[404804859,1770581443421,-151.0,0.00043765,120]
[404804860,1770581443430,-151.0,0.00043765,120]
[404804861,1770581443439,-151.0,0.00043765,31]
[404804862,1770581443449,-151.0,0.00043765,120]
[404804864,1770581443459,-151.0,0.00043765,120]
[404804866,1770581443469,-151.0,0.00043765,120]
[404804867,1770581443478,-155.243863,0.00043765,120]
[404804868,1770581443489,-151.0,0.0004377,120]
[404804869,1770581443499,-25000.0,0.00043773,15]
[404804870,1770581443508,-25000.0,0.00043782,15]
[404804871,1770581443518,-388.0,0.00043789,2]
[404804872,1770581443527,-25000.0,0.00043791,15]
[404804873,1770581443536,-151.0,0.00043791,120]
[404804874,1770581443546,-25000.0,0.000438,15]
[404804875,1770581443555,-178.93,0.000438,14]
[404804876,1770581443565,-170.9,0.000438,14]
[404804877,1770581443574,-5820.7,0.000438,2]
[404804878,1770581443584,-1333.33333,0.000438,120]
[404804879,1770581443593,-1333.33333,0.000438,120]
[404804880,1770581443603,-1333.33334,0.000438,120]
[404804881,1770581443612,-1333.33333,0.000438,120]
[404804882,1770581443621,-1333.33333,0.000438,120]
[404804883,1770581443631,-800.0,0.00043803,16]
[404804884,1770581443640,-800.0,0.00043803,16]
[404804885,1770581443651,-800.0,0.00043803,16]
[404804886,1770581443660,-800.0,0.00043803,16]
[404804887,1770581443669,-800.0,0.00043803,16]
[404804888,1770581443679,-829.56170862,0.00043803,16]
[404804889,1770581443688,-25000.0,0.00043809,15]
[404804890,1770581443698,-150.0,0.00043816,30]
[404804891,1770581443707,-25000.0,0.00043817,15]
[404804892,1770581443716,-200.0,0.00043822,2]
[404804893,1770581443726,-25000.0,0.00043826,15]
[404804894,1770581443735,-151.0,0.00043832,120]
[404804895,1770581443744,-500.0,0.00043835,120]
[404804896,1770581443753,-523.28522367,0.00043835,120]
[404804897,1770581443763,-500.0,0.00043835,120]
[404804898,1770581443774,-500.0,0.00043835,120]
[404804899,1770581443784,-500.0,0.00043835,120]
[404804900,1770581443794,-500.0,0.00043835,120]
[404804901,1770581443803,-500.0,0.00043835,120]
[404804902,1770581443812,-500.0,0.00043835,120]
[404804903,1770581443822,-500.0,0.00043835,120]
[404804904,1770581443831,-500.0,0.00043835,120]
[404804905,1770581443841,-500.0,0.00043835,2]
[404804906,1770581443850,-500.0,0.00043835,2]
[404804907,1770581443859,-500.0,0.00043835,2]
[404804908,1770581443868,-500.0,0.00043835,2]
[404804909,1770581443877,-500.0,0.00043835,2]
[404804910,1770581443886,-502.74917348,0.00043835,2]
[404804911,1770581443895,-151.0,0.00043835,60]
[404804912,1770581443905,-500.0,0.00043835,120]
[404804913,1770581443914,-500.0,0.00043835,120]
[404804914,1770581443923,-500.0,0.00043835,120]
[404804915,1770581443932,-500.0,0.00043835,120]
[404804916,1770581443941,-500.0,0.00043835,120]
[404804917,1770581443950,-500.0,0.00043835,120]
[404804918,1770581443959,-513.24541406,0.00043835,120]
[404804919,1770581443968,-500.0,0.00043835,120]
[404804920,1770581443978,-500.0,0.00043835,120]
[404804921,1770581443987,-500.0,0.00043835,120]
[404804922,1770581443996,-527.05483782,0.00043835,120]
[404804923,1770581444005,-500.0,0.00043835,120]
[404804924,1770581444014,-500.0,0.00043835,120]
[404804925,1770581444024,-500.0,0.00043835,120]
[404804926,1770581444033,-500.0,0.00043835,120]
[404804927,1770581444043,-514.80240291,0.00043835,120]
[404804928,1770581444052,-500.0,0.00043835,120]
[404804929,1770581444062,-512.83628163,0.00043835,120]
[404804930,1770581444072,-500.0,0.00043835,120]
[404804931,1770581444082,-500.0,0.00043835,120]
[404804932,1770581444091,-503.46167375,0.00043835,120]
[404804933,1770581444100,-510.48994209,0.00043835,120]
[404804934,1770581444109,-525.92768358,0.00043835,120]
[404804935,1770581444119,-500.0,0.00043835,120]
[404804936,1770581444129,-500.0,0.00043835,120]
[404804937,1770581444138,-500.0,0.00043835,120]
[404804938,1770581444147,-500.0,0.00043835,120]
[404804939,1770581444156,-500.0,0.00043835,120]
[404804940,1770581444166,-500.0,0.00043835,120]
[404804941,1770581444174,-500.0,0.00043835,120]
[404804942,1770581444184,-534.55632879,0.00043835,120]
[404804943,1770581444193,-500.0,0.00043835,120]
[404804944,1770581444202,-565.83514836,0.00043835,120]
[404804945,1770581444212,-528.2785684,0.00043835,120]
[404804946,1770581444222,-504.47298071,0.00043835,120]
[404804947,1770581444231,-500.0,0.00043835,120]
[404804948,1770581444240,-193.42728764,0.00043835,120]
[404804949,1770581444249,-500.0,0.00043835,120]
[404804950,1770581444259,-500.0,0.00043835,120]
[404804951,1770581444268,-500.0,0.00043835,120]
[404804952,1770581444277,-525.64347027,0.00043835,120]
[404804953,1770581444287,-472.96867078,0.00043835,120]
[404804954,1770581444297,-500.0,0.00043835,120]
[404804955,1770581444306,-500.0,0.00043835,120]
[404804956,1770581444315,-500.0,0.00043835,120]
[404804957,1770581444325,-500.0,0.00043835,120]
[404804958,1770581444334,-509.63605329,0.00043835,120]
[404804959,1770581444343,-464.38270883,0.00043835,120]
[404804960,1770581444352,-515.21784225,0.00043835,120]
[404804961,1770581444362,-500.0,0.00043835,7]
[404804962,1770581444371,-466.23377766,0.00043835,7]
[404804963,1770581444381,-500.0,0.00043835,120]
[404804964,1770581444390,-500.0,0.00043835,120]
[404804965,1770581444399,-500.0,0.00043835,120]
[404804966,1770581444408,-500.0,0.00043835,120]
[404804967,1770581444417,-530.59188132,0.00043835,120]
[404804968,1770581444427,-500.0,0.00043835,120]
[404804969,1770581444436,-500.0,0.00043835,120]
[404804970,1770581444445,-500.0,0.00043835,120]
[404804971,1770581444455,-563.64286534,0.00043835,120]
[404804972,1770581444464,-500.0,0.00043835,120]
[404804973,1770581444474,-500.0,0.00043835,120]
[404804974,1770581444483,-500.0,0.00043835,120]
[404804975,1770581444492,-500.0,0.00043835,120]
[404804976,1770581444502,-515.39872804,0.00043835,120]
[404804977,1770581444511,-503.19645681,0.00043835,120]
[404804978,1770581444521,-500.0,0.00043835,120]
[404804979,1770581444530,-500.0,0.00043835,120]
[404804980,1770581444540,-500.0,0.00043835,120]
[404804981,1770581444549,-500.0,0.00043835,120]
[404804982,1770581444559,-500.0,0.00043835,120]
[404804983,1770581444568,-500.0,0.00043835,120]
[404804984,1770581444577,-500.0,0.00043835,120]
[404804985,1770581444586,-500.0,0.00043835,120]
[404804986,1770581444596,-500.0,0.00043835,120]
[404804987,1770581444605,-500.0,0.00043835,120]
[404804988,1770581444615,-500.0,0.00043835,120]
[404804989,1770581444624,-550.45774297,0.00043835,120]
[404804990,1770581444633,-500.0,0.00043835,120]
[404804991,1770581444642,-500.0,0.00043835,120]
[404804992,1770581444651,-500.0,0.00043835,120]
[404804993,1770581444661,-469.55769236,0.00043835,120]
[404804994,1770581444671,-151.357663,0.00043835,120]
[404804995,1770581444681,-500.0,0.00043835,120]
[404804996,1770581444690,-478.90242612,0.00043835,120]
[404804997,1770581444699,-544.21040012,0.00043835,120]
[404804998,1770581444708,-500.0,0.00043835,120]
[404804999,1770581444718,-506.78584695,0.00043835,120]
[404805000,1770581444728,-160.56891195,0.00043835,120]
[404805001,1770581444737,-500.0,0.00043835,120]
[404805002,1770581444746,-500.0,0.00043835,120]